[Event "Late-Titled-Tuesday-Blitz-March-26-2024"]
[Site "Chess.com"]
[Date "2024.03.26"]
[Round "11"]
[White "ahmedkandiliii"]
[Black "N_I_Chess"]
[Result "0-1"]
[WhiteElo "2519"]
[BlackElo "2367"]
[TimeControl "180+1"]
[EndTime "16:04:15 PDT"]
[Termination "N_I_Chess won on time"]

1. e4 {[%clk 0:02:59.1]} 1... Nf6 {[%clk 0:03:00.3]} 2. Nc3 {[%clk 0:02:58.3]}
2... d5 {[%clk 0:03:00.3]} 3. exd5 {[%clk 0:02:57.1]} 3... Nxd5 {[%clk
0:03:01.2]} 4. d4 {[%clk 0:02:56.7]} 4... Bf5 {[%clk 0:03:00.1]} 5. Nf3 {[%clk
0:02:55.9]} 5... e6 {[%clk 0:02:59.8]} 6. Be2 {[%clk 0:02:55.2]} 6... Be7 {[%clk
0:02:57.9]} 7. O-O {[%clk 0:02:55.6]} 7... O-O {[%clk 0:02:58.5]} 8. Nxd5 {[%clk
0:02:53.6]} 8... exd5 {[%clk 0:02:58.4]} 9. Bd3 {[%clk 0:02:53.2]} 9... Bg4
{[%clk 0:02:53]} 10. Re1 {[%clk 0:02:48]} 10... Bf6 {[%clk 0:02:51.4]} 11. h3
{[%clk 0:02:42.9]} 11... Bh5 {[%clk 0:02:49.1]} 12. Bf4 {[%clk 0:02:13.9]} 12...
Nd7 {[%clk 0:02:18.5]} 13. c3 {[%clk 0:02:00.4]} 13... c6 {[%clk 0:02:09.9]} 14.
a4 {[%clk 0:01:50.8]} 14... a5 {[%clk 0:02:03.9]} 15. Kh2 {[%clk 0:01:22.8]}
15... Re8 {[%clk 0:01:49.5]} 16. Rxe8+ {[%clk 0:01:16.1]} 16... Qxe8 {[%clk
0:01:50.4]} 17. Qc2 {[%clk 0:01:00.9]} 17... Bg6 {[%clk 0:01:49]} 18. Re1 {[%clk
0:00:58.2]} 18... Qf8 {[%clk 0:01:40.6]} 19. Bxg6 {[%clk 0:00:53.3]} 19... hxg6
{[%clk 0:01:41.5]} 20. Qe2 {[%clk 0:00:53.4]} 20... Nb6 {[%clk 0:01:29.8]} 21.
Bg5 {[%clk 0:00:40.3]} 21... Nc4 {[%clk 0:01:28]} 22. b3 {[%clk 0:00:36.4]}
22... Nd6 {[%clk 0:01:28]} 23. Bxf6 {[%clk 0:00:31.9]} 23... gxf6 {[%clk
0:01:28.3]} 24. Qe7 {[%clk 0:00:29.2]} 24... Re8 {[%clk 0:01:21.7]} 25. Qd7
{[%clk 0:00:25.5]} 25... Rxe1 {[%clk 0:01:18.8]} 26. Nxe1 {[%clk 0:00:26.4]}
26... Qb8 {[%clk 0:01:17.2]} 27. Kg1 {[%clk 0:00:24.7]} 27... Ne4 {[%clk
0:01:17.4]} 28. c4 {[%clk 0:00:16.9]} 28... Qf4 {[%clk 0:01:14.2]} 29. Nf3
{[%clk 0:00:14.4]} 29... Qc1+ {[%clk 0:01:11.9]} 30. Kh2 {[%clk 0:00:15]} 30...
dxc4 {[%clk 0:01:05.2]} 31. Qe8+ {[%clk 0:00:13.7]} 31... Kg7 {[%clk 0:01:03.9]}
32. bxc4 {[%clk 0:00:08.6]} 32... Qf4+ {[%clk 0:01:03.4]} 33. Kg1 {[%clk
0:00:07.9]} 33... Qc1+ {[%clk 0:01:02.5]} 34. Kh2 {[%clk 0:00:06.7]} 34... Nxf2
{[%clk 0:01:02.6]} 35. d5 {[%clk 0:00:06.2]} 35... Qxc4 {[%clk 0:00:59.2]} 36.
dxc6 {[%clk 0:00:04.7]} 36... Qxc6 {[%clk 0:01:00.1]} 37. Qe3 {[%clk 0:00:04.5]}
37... Nd1 {[%clk 0:00:58.9]} 38. Qd3 {[%clk 0:00:03.6]} 38... Nc3 {[%clk
0:00:58.3]} 39. Qd4 {[%clk 0:00:03.9]} 39... Nd5 {[%clk 0:00:48]} 40. Kg3 {[%clk
0:00:03.7]} 40... Qc7+ {[%clk 0:00:47.9]} 41. Kf2 {[%clk 0:00:03.5]} 41... Qc2+
{[%clk 0:00:48.5]} 42. Kg3 {[%clk 0:00:03.5]} 42... Ne7 {[%clk 0:00:48.9]} 43.
Qd7 {[%clk 0:00:02]} 43... Nf5+ {[%clk 0:00:48]} 44. Kh2 {[%clk 0:00:02.7]}
44... Qb3 {[%clk 0:00:45.2]} 0-1

[Event "Late-Titled-Tuesday-Blitz-March-26-2024"]
[Site "Chess.com"]
[Date "2024.03.26"]
[Round "11"]
[White "GoltsevDmitry2000"]
[Black "Shankland"]
[Result "1-0"]
[WhiteElo "2809"]
[BlackElo "2909"]
[TimeControl "180+1"]
[EndTime "16:04:16 PDT"]
[Termination "GoltsevDmitry2000 won by checkmate"]

1. e4 {[%clk 0:02:17.1]} 1... c5 {[%clk 0:02:56.4]} 2. Nf3 {[%clk 0:02:17.2]}
2... d6 {[%clk 0:02:56.8]} 3. d4 {[%clk 0:02:17.6]} 3... cxd4 {[%clk 0:02:57.5]}
4. Nxd4 {[%clk 0:02:18.5]} 4... Nf6 {[%clk 0:02:57.7]} 5. Nc3 {[%clk 0:02:18.9]}
5... Nc6 {[%clk 0:02:58.3]} 6. Be2 {[%clk 0:02:19.2]} 6... g6 {[%clk 0:02:57.7]}
7. O-O {[%clk 0:02:19.3]} 7... Bg7 {[%clk 0:02:58]} 8. Be3 {[%clk 0:02:19.8]}
8... O-O {[%clk 0:02:57.9]} 9. Nb3 {[%clk 0:02:20.1]} 9... b6 {[%clk 0:02:56.7]}
10. f4 {[%clk 0:02:20.2]} 10... Bb7 {[%clk 0:02:56.8]} 11. Bf3 {[%clk
0:02:20.9]} 11... Rc8 {[%clk 0:02:53.7]} 12. Qe2 {[%clk 0:02:20.3]} 12... Qc7
{[%clk 0:02:32.7]} 13. Rad1 {[%clk 0:02:19.4]} 13... a6 {[%clk 0:02:25.1]} 14.
Qf2 {[%clk 0:02:15]} 14... b5 {[%clk 0:02:25]} 15. a3 {[%clk 0:02:12]} 15... e6
{[%clk 0:02:21.2]} 16. Rd2 {[%clk 0:02:07.6]} 16... Qb8 {[%clk 0:02:11.8]} 17.
Rfd1 {[%clk 0:02:04.1]} 17... Rfd8 {[%clk 0:01:52.5]} 18. Bb6 {[%clk 0:02:01.8]}
18... Rd7 {[%clk 0:01:52.6]} 19. Nc5 {[%clk 0:01:59.1]} 19... dxc5 {[%clk
0:01:44.3]} 20. Rxd7 {[%clk 0:01:59.1]} 20... Nxd7 {[%clk 0:01:44.9]} 21. Rxd7
{[%clk 0:02:00]} 21... Bd4 {[%clk 0:01:44.9]} 22. Rxd4 {[%clk 0:01:58.9]} 22...
cxd4 {[%clk 0:01:43.9]} 23. Ne2 {[%clk 0:01:55.1]} 23... e5 {[%clk 0:01:40.5]}
24. fxe5 {[%clk 0:01:53.9]} 24... Qxe5 {[%clk 0:01:39.8]} 25. Nxd4 {[%clk
0:01:52.2]} 25... Nb8 {[%clk 0:01:37.4]} 26. c3 {[%clk 0:01:46.1]} 26... Nd7
{[%clk 0:01:37.3]} 27. Nc2 {[%clk 0:01:39.3]} 27... Nxb6 {[%clk 0:01:34.8]} 28.
Qxb6 {[%clk 0:01:38.9]} 28... Bxe4 {[%clk 0:01:33.7]} 29. Qxa6 {[%clk
0:01:22.4]} 29... Rd8 {[%clk 0:01:28]} 30. Nd4 {[%clk 0:01:18.3]} 30... Rxd4
{[%clk 0:01:17.8]} 31. Qc8+ {[%clk 0:01:11.5]} 31... Kg7 {[%clk 0:01:16.7]} 32.
cxd4 {[%clk 0:01:11.5]} 32... Qxd4+ {[%clk 0:01:16.7]} 33. Kf1 {[%clk
0:01:07.1]} 33... Bd3+ {[%clk 0:01:14.6]} 34. Ke1 {[%clk 0:01:05]} 34... Qxb2
{[%clk 0:01:13.3]} 35. Qc5 {[%clk 0:01:00.9]} 35... Bc4 {[%clk 0:01:13.3]} 36.
Qb4 {[%clk 0:00:56.5]} 36... Qe5+ {[%clk 0:01:12.2]} 37. Kf2 {[%clk 0:00:54.6]}
37... Qxh2 {[%clk 0:01:11.4]} 38. Qc3+ {[%clk 0:00:37.2]} 38... f6 {[%clk
0:01:09.4]} 39. a4 {[%clk 0:00:36.7]} 39... Qh4+ {[%clk 0:01:08.1]} 40. g3
{[%clk 0:00:36.4]} 40... Qh2+ {[%clk 0:01:04.2]} 41. Bg2 {[%clk 0:00:36.5]}
41... Qh5 {[%clk 0:01:01.9]} 42. a5 {[%clk 0:00:34]} 42... Qc5+ {[%clk
0:00:59.9]} 43. Qe3 {[%clk 0:00:27.6]} 43... Qf5+ {[%clk 0:00:51.2]} 44. Kg1
{[%clk 0:00:22.9]} 44... b4 {[%clk 0:00:51.2]} 45. Qe7+ {[%clk 0:00:21]} 45...
Kh6 {[%clk 0:00:49.9]} 46. Qxb4 {[%clk 0:00:21.5]} 46... Qd3 {[%clk 0:00:44.1]}
47. Kh2 {[%clk 0:00:19.1]} 47... Qe2 {[%clk 0:00:41.9]} 48. Qc5 {[%clk
0:00:16.3]} 48... Ba6 {[%clk 0:00:37.9]} 49. Qb6 {[%clk 0:00:14.3]} 49... Kg5
{[%clk 0:00:36.1]} 50. Qd4 {[%clk 0:00:13.1]} 50... Qe5 {[%clk 0:00:34.5]} 51.
Qh4+ {[%clk 0:00:11.9]} 51... Kf5 {[%clk 0:00:34.8]} 52. Bh3# {[%clk 0:00:12.4]}
1-0

[Event "Late-Titled-Tuesday-Blitz-March-26-2024"]
[Site "Chess.com"]
[Date "2024.03.26"]
[Round "11"]
[White "AccioChess"]
[Black "kai_nov"]
[Result "0-1"]
[WhiteElo "2464"]
[BlackElo "2344"]
[TimeControl "180+1"]
[EndTime "16:04:18 PDT"]
[Termination "kai_nov won on time"]

1. g3 {[%clk 0:02:46.2]} 1... d5 {[%clk 0:02:56.5]} 2. Bg2 {[%clk 0:02:47.1]}
2... e5 {[%clk 0:02:56.7]} 3. d3 {[%clk 0:02:46.1]} 3... c5 {[%clk 0:02:56.3]}
4. Nf3 {[%clk 0:02:46]} 4... Nc6 {[%clk 0:02:56.6]} 5. O-O {[%clk 0:02:46.3]}
5... f6 {[%clk 0:02:56.6]} 6. c4 {[%clk 0:02:47]} 6... d4 {[%clk 0:02:56.5]} 7.
e3 {[%clk 0:02:47.5]} 7... Bg4 {[%clk 0:02:56]} 8. exd4 {[%clk 0:02:47.1]} 8...
cxd4 {[%clk 0:02:56.9]} 9. h3 {[%clk 0:02:30.9]} 9... Be6 {[%clk 0:02:56.5]} 10.
Nbd2 {[%clk 0:02:18.2]} 10... Nh6 {[%clk 0:02:55.8]} 11. Ne4 {[%clk 0:02:15.6]}
11... Nf7 {[%clk 0:02:55.9]} 12. h4 {[%clk 0:01:41.1]} 12... Be7 {[%clk
0:02:48.2]} 13. Qa4 {[%clk 0:01:37.2]} 13... O-O {[%clk 0:02:39]} 14. Bd2 {[%clk
0:01:30]} 14... a5 {[%clk 0:02:37.9]} 15. a3 {[%clk 0:01:26.6]} 15... h6 {[%clk
0:02:34.6]} 16. Be1 {[%clk 0:01:11.4]} 16... f5 {[%clk 0:02:28.2]} 17. Ned2
{[%clk 0:01:10.8]} 17... Qd7 {[%clk 0:02:18.8]} 18. Qc2 {[%clk 0:01:03.4]} 18...
g5 {[%clk 0:01:49.3]} 19. hxg5 {[%clk 0:00:59.9]} 19... hxg5 {[%clk 0:01:50.2]}
20. Nh2 {[%clk 0:00:57.9]} 20... g4 {[%clk 0:01:46.3]} 21. f3 {[%clk 0:00:46.6]}
21... gxf3 {[%clk 0:01:43.7]} 22. Nhxf3 {[%clk 0:00:40.6]} 22... Ng5 {[%clk
0:01:32.2]} 23. Nxg5 {[%clk 0:00:38.8]} 23... Bxg5 {[%clk 0:01:31.7]} 24. Nf3
{[%clk 0:00:38.9]} 24... Be3+ {[%clk 0:01:27.1]} 25. Bf2 {[%clk 0:00:39.2]}
25... f4 {[%clk 0:01:21.4]} 26. Qe2 {[%clk 0:00:31.6]} 26... Bg4 {[%clk
0:01:18.7]} 27. b4 {[%clk 0:00:25.4]} 27... axb4 {[%clk 0:01:17.8]} 28. axb4
{[%clk 0:00:24.5]} 28... Rxa1 {[%clk 0:01:17.6]} 29. Rxa1 {[%clk 0:00:25.4]}
29... e4 {[%clk 0:00:40.5]} 30. dxe4 {[%clk 0:00:20.1]} 30... d3 {[%clk
0:00:40.6]} 31. Qb2 {[%clk 0:00:06.8]} 31... d2 {[%clk 0:00:29.3]} 32. Rd1
{[%clk 0:00:05.5]} 32... Bxf2+ {[%clk 0:00:17.9]} 33. Kxf2 {[%clk 0:00:05.1]}
33... fxg3+ {[%clk 0:00:18.6]} 34. Kxg3 {[%clk 0:00:04.7]} 34... Bxf3 {[%clk
0:00:16]} 35. Bxf3 {[%clk 0:00:05.6]} 35... Qd6+ {[%clk 0:00:14.5]} 36. e5
{[%clk 0:00:05.7]} 36... Nxe5 {[%clk 0:00:13.9]} 37. Bd5+ {[%clk 0:00:05.8]}
37... Kh7 {[%clk 0:00:12.4]} 38. Rh1+ {[%clk 0:00:05.4]} 38... Kg7 {[%clk
0:00:11.5]} 39. Qxd2 {[%clk 0:00:03.3]} 39... Qg6+ {[%clk 0:00:11.2]} 0-1

[Event "Late-Titled-Tuesday-Blitz-March-26-2024"]
[Site "Chess.com"]
[Date "2024.03.26"]
[Round "11"]
[White "Firouzja2003"]
[Black "GHANDEEVAM2003"]
[Result "1-0"]
[WhiteElo "3134"]
[BlackElo "3052"]
[TimeControl "180+1"]
[EndTime "16:04:22 PDT"]
[Termination "Firouzja2003 won by resignation"]

1. e4 {[%clk 0:02:59.2]} 1... c6 {[%clk 0:02:59.8]} 2. d4 {[%clk 0:02:55.6]}
2... d5 {[%clk 0:03:00.4]} 3. e5 {[%clk 0:02:53.9]} 3... Bf5 {[%clk 0:02:59.9]}
4. h4 {[%clk 0:02:54.2]} 4... h5 {[%clk 0:02:59]} 5. Bd3 {[%clk 0:02:54.7]} 5...
Bxd3 {[%clk 0:02:58.2]} 6. Qxd3 {[%clk 0:02:55.6]} 6... Qa5+ {[%clk 0:02:58.7]}
7. b4 {[%clk 0:02:53.6]} 7... Qa6 {[%clk 0:02:57.3]} 8. Qb3 {[%clk 0:02:48.7]}
8... e6 {[%clk 0:02:54.1]} 9. a4 {[%clk 0:02:38.9]} 9... Nh6 {[%clk 0:02:53.4]}
10. Nf3 {[%clk 0:02:29.2]} 10... Nf5 {[%clk 0:02:52.7]} 11. Bd2 {[%clk
0:02:22.5]} 11... Nd7 {[%clk 0:02:49.9]} 12. Nc3 {[%clk 0:02:17.4]} 12... Qb6
{[%clk 0:02:22.8]} 13. Ne2 {[%clk 0:02:03.2]} 13... Be7 {[%clk 0:02:23.1]} 14.
Rb1 {[%clk 0:01:33.6]} 14... Qd8 {[%clk 0:02:18.8]} 15. Qd3 {[%clk 0:01:19.1]}
15... Nb6 {[%clk 0:02:16.1]} 16. a5 {[%clk 0:01:15.9]} 16... Nc4 {[%clk
0:02:16.3]} 17. Bg5 {[%clk 0:01:16.2]} 17... b6 {[%clk 0:02:11.2]} 18. Ng3
{[%clk 0:00:58.8]} 18... g6 {[%clk 0:01:42.1]} 19. Nxf5 {[%clk 0:00:54.4]} 19...
gxf5 {[%clk 0:01:43]} 20. O-O {[%clk 0:00:46.2]} 20... Kd7 {[%clk 0:01:35.5]}
21. axb6 {[%clk 0:00:38.6]} 21... axb6 {[%clk 0:01:35.2]} 22. Ra1 {[%clk
0:00:39.1]} 22... Rg8 {[%clk 0:01:25.7]} 23. g3 {[%clk 0:00:36.4]} 23... b5
{[%clk 0:01:25.1]} 24. Kg2 {[%clk 0:00:28.1]} 24... Ra4 {[%clk 0:01:24.7]} 25.
Qe2 {[%clk 0:00:19.7]} 25... Qa8 {[%clk 0:01:19]} 26. Rab1 {[%clk 0:00:19.2]}
26... Ra2 {[%clk 0:01:16.9]} 27. Bxe7 {[%clk 0:00:18.9]} 27... Kxe7 {[%clk
0:01:17.8]} 28. Ng5 {[%clk 0:00:19.1]} 28... Rh8 {[%clk 0:01:18.1]} 29. Nh3
{[%clk 0:00:12.9]} 29... Qa4 {[%clk 0:01:16.5]} 30. Rfc1 {[%clk 0:00:13.1]}
30... Na3 {[%clk 0:01:15.4]} 31. Ra1 {[%clk 0:00:13.3]} 31... Rxa1 {[%clk
0:01:14.5]} 32. Rxa1 {[%clk 0:00:14.2]} 32... Qxb4 {[%clk 0:01:14.4]} 33. Qe3
{[%clk 0:00:13.5]} 33... Ra8 {[%clk 0:01:10]} 34. Qg5+ {[%clk 0:00:13.5]} 34...
Kd7 {[%clk 0:01:10.6]} 35. Qg7 {[%clk 0:00:11.8]} 35... Kc7 {[%clk 0:01:07.5]}
36. Qxf7+ {[%clk 0:00:11.5]} 36... Kb6 {[%clk 0:01:08.2]} 37. Nf4 {[%clk
0:00:06.8]} 37... Qxd4 {[%clk 0:01:08.2]} 38. Nxe6 {[%clk 0:00:06.7]} 38... Qe4+
{[%clk 0:01:06.6]} 39. Kh2 {[%clk 0:00:06.4]} 39... Qxe5 {[%clk 0:01:07.1]} 40.
Re1 {[%clk 0:00:06.8]} 40... Qd6 {[%clk 0:01:06.4]} 41. Nd4 {[%clk 0:00:06.1]}
41... Qc5 {[%clk 0:01:05.2]} 42. c3 {[%clk 0:00:03.4]} 42... Qxc3 {[%clk
0:00:59.8]} 43. Ne6 {[%clk 0:00:03.6]} 43... Ra7 {[%clk 0:00:56.1]} 44. Qf8
{[%clk 0:00:04]} 44... Qxe1 {[%clk 0:00:47]} 45. Qd8+ {[%clk 0:00:03.5]} 1-0

[Event "Late-Titled-Tuesday-Blitz-March-26-2024"]
[Site "Chess.com"]
[Date "2024.03.26"]
[Round "11"]
[White "Karttunen"]
[Black "ContrVersia"]
[Result "1/2-1/2"]
[WhiteElo "2733"]
[BlackElo "2910"]
[TimeControl "180+1"]
[EndTime "16:04:29 PDT"]
[Termination "Game drawn by repetition"]

1. e4 {[%clk 0:03:00.9]} 1... c5 {[%clk 0:02:55.1]} 2. Nf3 {[%clk 0:02:59.7]}
2... a6 {[%clk 0:02:55.6]} 3. Nc3 {[%clk 0:02:49.4]} 3... e6 {[%clk 0:02:53.7]}
4. d4 {[%clk 0:02:48.9]} 4... b5 {[%clk 0:02:51.1]} 5. d5 {[%clk 0:02:44.2]}
5... d6 {[%clk 0:02:51.3]} 6. a3 {[%clk 0:02:44]} 6... e5 {[%clk 0:02:48.8]} 7.
h3 {[%clk 0:02:35.7]} 7... Nf6 {[%clk 0:02:45.5]} 8. Bd3 {[%clk 0:02:20.2]} 8...
Be7 {[%clk 0:02:43.8]} 9. Be3 {[%clk 0:02:18.7]} 9... O-O {[%clk 0:02:37.2]} 10.
g4 {[%clk 0:02:15.4]} 10... Nbd7 {[%clk 0:02:33.1]} 11. Nd2 {[%clk 0:02:06.3]}
11... Ne8 {[%clk 0:02:27.4]} 12. h4 {[%clk 0:01:51.8]} 12... Bxh4 {[%clk
0:02:24.6]} 13. Nf3 {[%clk 0:01:51.6]} 13... Be7 {[%clk 0:02:23.7]} 14. g5
{[%clk 0:01:48.2]} 14... Nb6 {[%clk 0:02:07.1]} 15. Rg1 {[%clk 0:01:34.3]} 15...
Bd7 {[%clk 0:01:43.6]} 16. Nh4 {[%clk 0:01:32.4]} 16... g6 {[%clk 0:01:41.6]}
17. Nf5 {[%clk 0:01:15.2]} 17... Ng7 {[%clk 0:01:25.1]} 18. Nh6+ {[%clk
0:00:55.4]} 18... Kh8 {[%clk 0:01:25.4]} 19. Qf3 {[%clk 0:00:44.3]} 19... f5
{[%clk 0:01:18.5]} 20. gxf6 {[%clk 0:00:43.2]} 20... Rxf6 {[%clk 0:01:18]} 21.
Nf7+ {[%clk 0:00:36.8]} 21... Rxf7 {[%clk 0:01:12.3]} 22. Qxf7 {[%clk 0:00:37]}
22... Be8 {[%clk 0:00:43]} 23. Qf3 {[%clk 0:00:34.9]} 23... Nd7 {[%clk
0:00:43.2]} 24. O-O-O {[%clk 0:00:32.7]} 24... b4 {[%clk 0:00:42.7]} 25. axb4
{[%clk 0:00:30.7]} 25... cxb4 {[%clk 0:00:43.6]} 26. Nb1 {[%clk 0:00:31]} 26...
Nf6 {[%clk 0:00:41.7]} 27. Rh1 {[%clk 0:00:30.4]} 27... Nfh5 {[%clk 0:00:41.8]}
28. Rdg1 {[%clk 0:00:28.3]} 28... a5 {[%clk 0:00:38.6]} 29. Bh6 {[%clk
0:00:22.9]} 29... Kg8 {[%clk 0:00:36.6]} 30. Rxh5 {[%clk 0:00:20.9]} 30... Nxh5
{[%clk 0:00:36.1]} 31. Qxh5 {[%clk 0:00:21]} 31... a4 {[%clk 0:00:31.6]} 32. Qg4
{[%clk 0:00:18.3]} 32... a3 {[%clk 0:00:26]} 33. bxa3 {[%clk 0:00:16.6]} 33...
bxa3 {[%clk 0:00:26.9]} 34. Nc3 {[%clk 0:00:14.9]} 34... a2 {[%clk 0:00:25.6]}
35. Nxa2 {[%clk 0:00:13]} 35... Rxa2 {[%clk 0:00:25.8]} 36. Kd2 {[%clk
0:00:13.6]} 36... Bf7 {[%clk 0:00:16.5]} 37. Rb1 {[%clk 0:00:12.5]} 37... Ra7
{[%clk 0:00:13.5]} 38. Be3 {[%clk 0:00:11.3]} 38... Ra8 {[%clk 0:00:13.8]} 39.
Rb7 {[%clk 0:00:10.7]} 39... h5 {[%clk 0:00:10.4]} 40. Qg2 {[%clk 0:00:09.6]}
40... Rb8 {[%clk 0:00:08.8]} 41. Ra7 {[%clk 0:00:09]} 41... Ra8 {[%clk
0:00:08.9]} 42. Rb7 {[%clk 0:00:08.9]} 42... Rb8 {[%clk 0:00:08.3]} 43. Ra7
{[%clk 0:00:07.8]} 43... Ra8 {[%clk 0:00:03.9]} 44. Rb7 {[%clk 0:00:06.4]}
1/2-1/2

[Event "Late-Titled-Tuesday-Blitz-March-26-2024"]
[Site "Chess.com"]
[Date "2024.03.26"]
[Round "11"]
[White "Rud_Makarian"]
[Black "dretch"]
[Result "1-0"]
[WhiteElo "3092"]
[BlackElo "2870"]
[TimeControl "180+1"]
[EndTime "16:04:31 PDT"]
[Termination "Rud_Makarian won on time"]

1. d4 {[%clk 0:03:00.9]} 1... d5 {[%clk 0:02:58.2]} 2. c4 {[%clk 0:03:01.8]}
2... c6 {[%clk 0:02:57.8]} 3. Nf3 {[%clk 0:03:02.7]} 3... Nf6 {[%clk 0:02:57.8]}
4. Nc3 {[%clk 0:03:03.4]} 4... dxc4 {[%clk 0:02:58]} 5. g3 {[%clk 0:03:02.2]}
5... b5 {[%clk 0:02:54.5]} 6. Ne5 {[%clk 0:03:02.3]} 6... Nfd7 {[%clk
0:02:47.8]} 7. Nf3 {[%clk 0:02:55.4]} 7... Bb7 {[%clk 0:02:45.6]} 8. Bg2 {[%clk
0:02:56]} 8... e6 {[%clk 0:02:44.3]} 9. O-O {[%clk 0:02:56.5]} 9... Be7 {[%clk
0:02:43.4]} 10. b3 {[%clk 0:02:50.4]} 10... cxb3 {[%clk 0:02:33.5]} 11. Qxb3
{[%clk 0:02:50.2]} 11... O-O {[%clk 0:02:29.4]} 12. Rd1 {[%clk 0:02:50.8]} 12...
a5 {[%clk 0:02:05.6]} 13. Bf4 {[%clk 0:02:42.1]} 13... a4 {[%clk 0:01:47.1]} 14.
Qc2 {[%clk 0:02:41.6]} 14... Na6 {[%clk 0:01:47]} 15. Ne5 {[%clk 0:02:33.9]}
15... Nb4 {[%clk 0:01:41.8]} 16. Qb1 {[%clk 0:02:30.3]} 16... Nxe5 {[%clk
0:01:38.4]} 17. Bxe5 {[%clk 0:02:29.4]} 17... Qb6 {[%clk 0:01:19.4]} 18. Qe4
{[%clk 0:02:29.3]} 18... Nd5 {[%clk 0:01:10.7]} 19. Rac1 {[%clk 0:02:17.4]}
19... Nxc3 {[%clk 0:00:50.3]} 20. Rxc3 {[%clk 0:02:18]} 20... Rad8 {[%clk
0:00:44.7]} 21. g4 {[%clk 0:02:09.7]} 21... Ba8 {[%clk 0:00:24.8]} 22. Rh3
{[%clk 0:01:51.3]} 22... f5 {[%clk 0:00:22.9]} 23. gxf5 {[%clk 0:01:40.5]} 23...
exf5 {[%clk 0:00:22.9]} 24. Qf4 {[%clk 0:01:41.1]} 24... c5 {[%clk 0:00:16.6]}
25. Bxa8 {[%clk 0:01:34.2]} 25... Rxa8 {[%clk 0:00:16]} 26. d5 {[%clk
0:01:33.4]} 26... Rf7 {[%clk 0:00:12]} 27. d6 {[%clk 0:01:29.6]} 27... Rd8
{[%clk 0:00:10]} 28. Rhd3 {[%clk 0:01:18.8]} 28... Bf8 {[%clk 0:00:09.4]} 29.
Qh4 {[%clk 0:00:50.8]} 29... Rdd7 {[%clk 0:00:08.8]} 30. Rh3 {[%clk 0:00:46.5]}
30... g6 {[%clk 0:00:08.7]} 31. Rg3 {[%clk 0:00:38.6]} 31... Bg7 {[%clk
0:00:08.4]} 32. Bxg7 {[%clk 0:00:26.6]} 32... Kxg7 {[%clk 0:00:09.3]} 33. Rgd3
{[%clk 0:00:26.9]} 33... Rf6 {[%clk 0:00:08.3]} 34. Qf4 {[%clk 0:00:23.9]} 34...
b4 {[%clk 0:00:06.4]} 35. Qe5 {[%clk 0:00:18.8]} 35... Kf7 {[%clk 0:00:06.3]}
36. Rh3 {[%clk 0:00:17.6]} 36... h5 {[%clk 0:00:05.6]} 37. Re3 {[%clk
0:00:18.1]} 37... b3 {[%clk 0:00:04.6]} 38. Qe8+ {[%clk 0:00:17.8]} 38... Kg7
{[%clk 0:00:04.9]} 39. Qxd7+ {[%clk 0:00:18.4]} 39... Kh6 {[%clk 0:00:04.7]} 40.
axb3 {[%clk 0:00:18]} 40... axb3 {[%clk 0:00:04.9]} 41. Qe7 {[%clk 0:00:18.6]}
41... b2 {[%clk 0:00:02.7]} 42. Qxf6 {[%clk 0:00:17.5]} 42... b1=Q {[%clk
0:00:02.7]} 43. Qf8+ {[%clk 0:00:11.9]} 43... Kg5 {[%clk 0:00:01.9]} 44. Rg3+
{[%clk 0:00:12.5]} 44... Kf4 {[%clk 0:00:01]} 45. Qh6+ {[%clk 0:00:12.4]} 1-0

[Event "Late-Titled-Tuesday-Blitz-March-26-2024"]
[Site "Chess.com"]
[Date "2024.03.26"]
[Round "11"]
[White "emeli_chess"]
[Black "chessamical"]
[Result "1-0"]
[WhiteElo "2408"]
[BlackElo "2270"]
[TimeControl "180+1"]
[EndTime "16:04:32 PDT"]
[Termination "emeli_chess won on time"]

1. d4 {[%clk 0:03:00.9]} 1... Nf6 {[%clk 0:03:00.1]} 2. c4 {[%clk 0:03:01.2]}
2... e6 {[%clk 0:03:00.4]} 3. Nc3 {[%clk 0:03:01.5]} 3... Bb4 {[%clk 0:02:58.6]}
4. Qc2 {[%clk 0:03:01.6]} 4... O-O {[%clk 0:02:56.6]} 5. e4 {[%clk 0:03:01.8]}
5... d5 {[%clk 0:02:55.5]} 6. e5 {[%clk 0:03:01.7]} 6... Ne4 {[%clk 0:02:54.7]}
7. Bd3 {[%clk 0:03:01.3]} 7... c5 {[%clk 0:02:52.8]} 8. Nf3 {[%clk 0:03:01.4]}
8... cxd4 {[%clk 0:02:52.1]} 9. Nxd4 {[%clk 0:03:01.6]} 9... Nd7 {[%clk
0:02:51.9]} 10. Bf4 {[%clk 0:03:01.6]} 10... Ndc5 {[%clk 0:02:50.6]} 11. O-O
{[%clk 0:02:52.4]} 11... Bxc3 {[%clk 0:02:36.8]} 12. bxc3 {[%clk 0:02:51.8]}
12... Nxd3 {[%clk 0:02:29.7]} 13. Qxd3 {[%clk 0:02:51.4]} 13... Nc5 {[%clk
0:02:19.9]} 14. Qe2 {[%clk 0:02:47.3]} 14... dxc4 {[%clk 0:02:16.4]} 15. Qxc4
{[%clk 0:02:45.7]} 15... b6 {[%clk 0:02:16]} 16. Rfd1 {[%clk 0:02:36.4]} 16...
Ba6 {[%clk 0:01:55.2]} 17. Nb5 {[%clk 0:01:55.6]} 17... Qh4 {[%clk 0:01:46.3]}
18. Rd4 {[%clk 0:01:32.8]} 18... Rac8 {[%clk 0:00:57.8]} 19. Bg3 {[%clk
0:01:27.4]} 19... Qh5 {[%clk 0:00:56]} 20. Qb4 {[%clk 0:01:20.2]} 20... Bxb5
{[%clk 0:00:51.3]} 21. Qxb5 {[%clk 0:01:19.6]} 21... Qg6 {[%clk 0:00:33.8]} 22.
Qe2 {[%clk 0:01:15.6]} 22... h5 {[%clk 0:00:22.9]} 23. h3 {[%clk 0:01:13.6]}
23... Rc6 {[%clk 0:00:18.9]} 24. Rad1 {[%clk 0:01:12.2]} 24... Nb7 {[%clk
0:00:14.9]} 25. Rd7 {[%clk 0:01:08.3]} 25... Na5 {[%clk 0:00:15]} 26. Rxa7
{[%clk 0:01:03.1]} 26... Rxc3 {[%clk 0:00:15.2]} 27. Rdd7 {[%clk 0:00:56.9]}
27... h4 {[%clk 0:00:12.6]} 28. Bxh4 {[%clk 0:00:52]} 28... Rxh3 {[%clk
0:00:12.3]} 29. Bg3 {[%clk 0:00:52]} 29... Rh5 {[%clk 0:00:11.8]} 30. Qd3 {[%clk
0:00:40.2]} 30... Qh6 {[%clk 0:00:10.9]} 31. f3 {[%clk 0:00:38.7]} 31... Rh1+
{[%clk 0:00:10.8]} 32. Kf2 {[%clk 0:00:38.6]} 32... Qc1 {[%clk 0:00:08.1]} 33.
Qd2 {[%clk 0:00:33.5]} 33... Qg1+ {[%clk 0:00:07.8]} 34. Ke2 {[%clk 0:00:33.3]}
34... Qxg2+ {[%clk 0:00:08.3]} 35. Bf2 {[%clk 0:00:32.4]} 35... Rh2 {[%clk
0:00:06.3]} 36. Qe1 {[%clk 0:00:28.5]} 36... Nc4 {[%clk 0:00:06.1]} 37. Rd4
{[%clk 0:00:25.5]} 37... Nxe5 {[%clk 0:00:05.8]} 38. Re4 {[%clk 0:00:23.2]}
38... Qxf3+ {[%clk 0:00:03.2]} 39. Kd2 {[%clk 0:00:23.5]} 39... Qd3+ {[%clk
0:00:03.1]} 40. Kc1 {[%clk 0:00:22.9]} 40... Nc4 {[%clk 0:00:03.3]} 41. Re2
{[%clk 0:00:18.4]} 41... Qd5 {[%clk 0:00:01.7]} 42. Qc3 {[%clk 0:00:17.1]} 42...
Rh1+ {[%clk 0:00:01.9]} 43. Kc2 {[%clk 0:00:17.5]} 1-0